[Event "*** Titled Tuesday Blitz"]
[Site "Chess.com"]
[Date "2019.04.02"]
[Round "5"]
[White "JonahWillow"]
[Black "EvgenyT"]
[Result "0-1"]
[WhiteElo "2692"]
[BlackElo "2938"]
[TimeControl "180+2"]
[EndTime "15:06:11 PDT"]
[Termination "EvgenyT won by resignation"]

1. e4 {[%clk 0:03:01.9]} 1... e6 {[%clk 0:03:00.1]} 2. d4 {[%clk 0:03:02.3]}
2... d5 {[%clk 0:03:01.5]} 3. Nd2 {[%clk 0:03:04]} 3... c5 {[%clk 0:03:01.5]} 4.
Ngf3 {[%clk 0:03:01.2]} 4... cxd4 {[%clk 0:03:01.7]} 5. exd5 {[%clk 0:03:01.2]}
5... Qxd5 {[%clk 0:03:02.4]} 6. Bc4 {[%clk 0:02:57.5]} 6... Qd6 {[%clk
0:03:03.4]} 7. O-O {[%clk 0:02:58.3]} 7... Nc6 {[%clk 0:03:02.5]} 8. Nb3 {[%clk
0:02:59.7]} 8... Nf6 {[%clk 0:03:02.6]} 9. Nbxd4 {[%clk 0:03:01]} 9... Nxd4
{[%clk 0:03:03.7]} 10. Nxd4 {[%clk 0:03:02.7]} 10... a6 {[%clk 0:03:04.7]} 11.
Re1 {[%clk 0:03:01.4]} 11... Qc7 {[%clk 0:03:05.4]} 12. Bb3 {[%clk 0:03:01.7]}
12... Bd7 {[%clk 0:03:00.9]} 13. Qf3 {[%clk 0:02:13.4]} 13... O-O-O {[%clk
0:02:52.5]} 14. Bf4 {[%clk 0:02:09.9]} 14... Bd6 {[%clk 0:02:51.8]} 15. Bxd6
{[%clk 0:02:08]} 15... Qxd6 {[%clk 0:02:52.9]} 16. Rad1 {[%clk 0:02:09.9]} 16...
Qc7 {[%clk 0:02:51.5]} 17. Qg3 {[%clk 0:01:56.5]} 17... Qxg3 {[%clk 0:02:48.7]}
18. hxg3 {[%clk 0:01:58.4]} 18... Kc7 {[%clk 0:02:49]} 19. c3 {[%clk 0:01:58.6]}
19... h5 {[%clk 0:02:43.3]} 20. Nf3 {[%clk 0:01:54.5]} 20... Be8 {[%clk
0:02:29.8]} 21. Rxd8 {[%clk 0:01:49.6]} 21... Kxd8 {[%clk 0:02:30.8]} 22. Ne5
{[%clk 0:01:48.9]} 22... Ke7 {[%clk 0:02:29]} 23. Rd1 {[%clk 0:01:25.4]} 23...
h4 {[%clk 0:02:26.3]} 24. g4 {[%clk 0:01:20.9]} 24... Nd7 {[%clk 0:02:21.6]} 25.
Nc4 {[%clk 0:01:18.5]} 25... Nc5 {[%clk 0:02:12.3]} 26. Bc2 {[%clk 0:01:02.8]}
26... f6 {[%clk 0:02:01.8]} 27. b4 {[%clk 0:01:02.4]} 27... Ba4 {[%clk
0:02:01.5]} 28. bxc5 {[%clk 0:00:45.6]} 28... Bxc2 {[%clk 0:02:01.9]} 29. Rd2
{[%clk 0:00:46.6]} 29... Be4 {[%clk 0:01:58.5]} 30. Nd6 {[%clk 0:00:42]} 30...
Bc6 {[%clk 0:01:53.5]} 31. Rb2 {[%clk 0:00:41.7]} 31... h3 {[%clk 0:01:51.6]}
32. f3 {[%clk 0:00:40.3]} 32... Rh4 {[%clk 0:01:15.8]} 33. Nxb7 {[%clk
0:00:17.8]} 33... hxg2 {[%clk 0:01:16]} 34. Kxg2 {[%clk 0:00:19.3]} 34... Rxg4+
{[%clk 0:01:16.7]} 35. Kf2 {[%clk 0:00:20.9]} 35... Rc4 {[%clk 0:01:10.8]} 36.
Rb3 {[%clk 0:00:16.9]} 36... g5 {[%clk 0:01:02.9]} 37. Ke3 {[%clk 0:00:16.8]}
37... e5 {[%clk 0:01:03.7]} 38. Rb6 {[%clk 0:00:14.4]} 38... Bd5 {[%clk
0:00:31.7]} 39. Kd3 {[%clk 0:00:10.6]} 39... a5 {[%clk 0:00:20.7]} 40. Rd6
{[%clk 0:00:09.3]} 40... Bg8 {[%clk 0:00:18.6]} 41. Rd8 {[%clk 0:00:06.8]} 41...
Be6 {[%clk 0:00:14.8]} 42. Rd6 {[%clk 0:00:05]} 42... Bg8 {[%clk 0:00:15.3]} 43.
Rc6 {[%clk 0:00:06.3]} 43... Rf4 {[%clk 0:00:14.5]} 44. Rc7+ {[%clk 0:00:06.4]}
44... Ke6 {[%clk 0:00:12.4]} 45. Ke3 {[%clk 0:00:05.6]} 45... g4 {[%clk
0:00:10.5]} 46. fxg4 {[%clk 0:00:03.6]} 46... Rxg4 {[%clk 0:00:11.8]} 47. Nd8+
{[%clk 0:00:05.3]} 47... Kd5 {[%clk 0:00:11.5]} 48. c6 {[%clk 0:00:06.7]} 48...
Rc4 {[%clk 0:00:10.7]} 49. Rg7 {[%clk 0:00:06.3]} 49... Be6 {[%clk 0:00:10.6]}
50. c7 {[%clk 0:00:05.4]} 50... Bf5 {[%clk 0:00:10.1]} 51. Kd2 {[%clk
0:00:06.4]} 51... a4 {[%clk 0:00:07.2]} 52. Nb7 {[%clk 0:00:07.4]} 52... a3
{[%clk 0:00:07.8]} 53. Na5 {[%clk 0:00:07.9]} 53... Rh4 {[%clk 0:00:07.9]} 54.
Rg8 {[%clk 0:00:06.9]} 54... Rh2+ {[%clk 0:00:08]} 55. Ke3 {[%clk 0:00:08.2]}
55... Rh3+ {[%clk 0:00:08.6]} 56. Kd2 {[%clk 0:00:09.4]} 56... Rd3+ {[%clk
0:00:08.7]} 57. Ke2 {[%clk 0:00:09.4]} 57... Rxc3 {[%clk 0:00:10]} 58. Rd8+
{[%clk 0:00:10.2]} 58... Ke4 {[%clk 0:00:10.5]} 59. Kd2 {[%clk 0:00:10]} 59...
Rxc7 {[%clk 0:00:11.2]} 60. Nb3 {[%clk 0:00:11.5]} 60... Kf4 {[%clk 0:00:11.8]}
61. Rf8 {[%clk 0:00:11.8]} 61... Rc2+ {[%clk 0:00:12.7]} 62. Kd1 {[%clk
0:00:12.9]} 62... Rxa2 {[%clk 0:00:14]} 63. Rxf6 {[%clk 0:00:14.4]} 63... Rb2
{[%clk 0:00:15.3]} 64. Nc1 {[%clk 0:00:13.8]} 64... a2 {[%clk 0:00:15.7]} 65.
Ra6 {[%clk 0:00:15.3]} 65... Bb1 {[%clk 0:00:14.8]} 66. Ke1 {[%clk 0:00:15.9]}
66... e4 {[%clk 0:00:14.5]} 67. Ra3 {[%clk 0:00:16.9]} 67... Rh2 {[%clk
0:00:14.3]} 68. Ne2+ {[%clk 0:00:17.9]} 68... Ke5 {[%clk 0:00:13]} 69. Kd2
{[%clk 0:00:18.4]} 69... Bd3 {[%clk 0:00:12.8]} 70. Ra5+ {[%clk 0:00:18.5]}
70... Kd6 {[%clk 0:00:13.4]} 0-1

[Event "*** Titled Tuesday Blitz"]
[Site "Chess.com"]
[Date "2019.04.02"]
[Round "5"]
[White "suyu28"]
[Black "sergeikim"]
[Result "1-0"]
[WhiteElo "2567"]
[BlackElo "2569"]
[TimeControl "180+2"]
[EndTime "15:06:22 PDT"]
[Termination "suyu28 won by resignation"]

1. c4 {[%clk 0:02:56.1]} 1... e5 {[%clk 0:03:00.5]} 2. Nc3 {[%clk 0:02:56.4]}
2... Nc6 {[%clk 0:03:01.7]} 3. Nf3 {[%clk 0:02:57.2]} 3... Nf6 {[%clk
0:03:02.1]} 4. e3 {[%clk 0:02:58]} 4... Bb4 {[%clk 0:03:01.6]} 5. Qc2 {[%clk
0:02:58.9]} 5... Bxc3 {[%clk 0:02:58.4]} 6. Qxc3 {[%clk 0:02:59]} 6... d6 {[%clk
0:02:59.2]} 7. Be2 {[%clk 0:02:59.6]} 7... O-O {[%clk 0:02:59.2]} 8. O-O {[%clk
0:02:59.8]} 8... Re8 {[%clk 0:02:59.5]} 9. b3 {[%clk 0:03:00.5]} 9... Bg4 {[%clk
0:02:53.7]} 10. d3 {[%clk 0:02:55.1]} 10... a5 {[%clk 0:02:33]} 11. a3 {[%clk
0:02:54.8]} 11... h6 {[%clk 0:02:30.2]} 12. Bb2 {[%clk 0:02:55.5]} 12... Qd7
{[%clk 0:02:27.3]} 13. Rfe1 {[%clk 0:02:55]} 13... Bh5 {[%clk 0:02:25.6]} 14.
Qc2 {[%clk 0:02:44.5]} 14... Rad8 {[%clk 0:02:19.9]} 15. Rac1 {[%clk 0:02:42.9]}
15... Bg4 {[%clk 0:02:15.6]} 16. Qb1 {[%clk 0:02:42.6]} 16... Ne7 {[%clk
0:02:06]} 17. c5 {[%clk 0:02:32.7]} 17... Ng6 {[%clk 0:01:59.9]} 18. cxd6 {[%clk
0:02:25.1]} 18... cxd6 {[%clk 0:01:58.2]} 19. Rc2 {[%clk 0:02:21.5]} 19... Rc8
{[%clk 0:01:58.1]} 20. Rec1 {[%clk 0:02:21]} 20... Rc6 {[%clk 0:01:50.3]} 21. h3
{[%clk 0:01:58.3]} 21... Be6 {[%clk 0:01:47.6]} 22. Ba1 {[%clk 0:01:56.1]} 22...
Rec8 {[%clk 0:01:46.4]} 23. Ne1 {[%clk 0:01:55.6]} 23... Rxc2 {[%clk 0:01:28.4]}
24. Rxc2 {[%clk 0:01:55.5]} 24... Rxc2 {[%clk 0:01:27.9]} 25. Qxc2 {[%clk
0:01:56.3]} 25... Qb5 {[%clk 0:01:26.9]} 26. Bd1 {[%clk 0:01:57.1]} 26... Qb6
{[%clk 0:01:16.3]} 27. d4 {[%clk 0:01:51.6]} 27... Bd5 {[%clk 0:01:09.7]} 28. f3
{[%clk 0:01:32.4]} 28... Kh7 {[%clk 0:00:50.9]} 29. Kh2 {[%clk 0:01:30.2]} 29...
e4 {[%clk 0:00:46.2]} 30. f4 {[%clk 0:01:28.7]} 30... Ne7 {[%clk 0:00:40.8]} 31.
g4 {[%clk 0:01:24.3]} 31... Bc6 {[%clk 0:00:30.4]} 32. Ng2 {[%clk 0:01:18.5]}
32... Kg8 {[%clk 0:00:26]} 33. Be2 {[%clk 0:01:15.7]} 33... Bd5 {[%clk
0:00:22.1]} 34. Bd1 {[%clk 0:01:08.8]} 34... Bc6 {[%clk 0:00:20.7]} 35. Kg3
{[%clk 0:01:08.4]} 35... Bd5 {[%clk 0:00:20.1]} 36. h4 {[%clk 0:01:08.2]} 36...
h5 {[%clk 0:00:17.9]} 37. g5 {[%clk 0:01:05.5]} 37... Nf5+ {[%clk 0:00:18.1]}
38. Kh3 {[%clk 0:01:06.2]} 38... Be6 {[%clk 0:00:17.8]} 39. Kh2 {[%clk
0:01:01.9]} 39... Ng4+ {[%clk 0:00:13.6]} 40. Bxg4 {[%clk 0:01:00.2]} 40... hxg4
{[%clk 0:00:15]} 41. d5 {[%clk 0:00:59.2]} 41... g3+ {[%clk 0:00:10.5]} 42. Kh1
{[%clk 0:00:59.9]} 42... Nxe3 {[%clk 0:00:09.3]} 43. Qc3 {[%clk 0:00:34.7]}
43... Nf5 {[%clk 0:00:09.4]} 44. dxe6 {[%clk 0:00:34.9]} 44... fxe6 {[%clk
0:00:09.4]} 45. Qc8+ {[%clk 0:00:28.4]} 45... Kf7 {[%clk 0:00:09.1]} 46. Qd7+
{[%clk 0:00:22.7]} 46... Ne7 {[%clk 0:00:09.1]} 47. g6+ {[%clk 0:00:22.4]} 47...
Kf8 {[%clk 0:00:06.3]} 48. Bxg7+ {[%clk 0:00:22.9]} 48... Kxg7 {[%clk
0:00:06.7]} 49. Qxe7+ {[%clk 0:00:23.8]} 49... Kxg6 {[%clk 0:00:08.2]} 50. Qxe6+
{[%clk 0:00:24.7]} 50... Kg7 {[%clk 0:00:09.1]} 51. Qe7+ {[%clk 0:00:25.7]}
51... Kh8 {[%clk 0:00:08.8]} 52. Qf8+ {[%clk 0:00:24.2]} 52... Kh7 {[%clk
0:00:09.3]} 53. Qf7+ {[%clk 0:00:25.2]} 53... Kh8 {[%clk 0:00:10.2]} 54. Qe8+
{[%clk 0:00:26.3]} 54... Kg7 {[%clk 0:00:09.7]} 55. Qe7+ {[%clk 0:00:27.3]}
55... Kh8 {[%clk 0:00:10.3]} 56. Qf6+ {[%clk 0:00:27.2]} 56... Kh7 {[%clk
0:00:10.9]} 57. Qf5+ {[%clk 0:00:27.6]} 57... Kh8 {[%clk 0:00:11.5]} 58. Qh5+
{[%clk 0:00:26]} 58... Kg7 {[%clk 0:00:11.6]} 59. Qg4+ {[%clk 0:00:26]} 59...
Kh8 {[%clk 0:00:12.2]} 60. Qxg3 {[%clk 0:00:27.3]} 60... Qd4 {[%clk 0:00:12.2]}
61. Qe3 {[%clk 0:00:27.2]} 61... Qd1+ {[%clk 0:00:10.5]} 62. Kh2 {[%clk
0:00:28.1]} 62... d5 {[%clk 0:00:12]} 63. f5 {[%clk 0:00:28.6]} 63... Qg4 {[%clk
0:00:11.1]} 64. Qg5 {[%clk 0:00:27.3]} 64... Qf3 {[%clk 0:00:10.6]} 65. f6
{[%clk 0:00:28.1]} 1-0

[Event "*** Titled Tuesday Blitz"]
[Site "Chess.com"]
[Date "2019.04.02"]
[Round "5"]
[White "Benek77"]
[Black "maloy07"]
[Result "0-1"]
[WhiteElo "2633"]
[BlackElo "2830"]
[TimeControl "180+2"]
[EndTime "15:06:32 PDT"]
[Termination "maloy07 won by resignation"]

1. e4 {[%clk 0:03:01.9]} 1... e6 {[%clk 0:02:58.5]} 2. d4 {[%clk 0:03:02.7]}
2... d5 {[%clk 0:02:56.3]} 3. exd5 {[%clk 0:03:03.9]} 3... exd5 {[%clk
0:02:54.9]} 4. c4 {[%clk 0:03:05.8]} 4... Bb4+ {[%clk 0:02:48.6]} 5. Nc3 {[%clk
0:03:06.7]} 5... Nf6 {[%clk 0:02:44.2]} 6. Nf3 {[%clk 0:03:06.6]} 6... O-O
{[%clk 0:02:42.9]} 7. Bd3 {[%clk 0:03:07.4]} 7... Re8+ {[%clk 0:02:40.4]} 8. Be3
{[%clk 0:03:08.1]} 8... dxc4 {[%clk 0:02:35.2]} 9. Bxc4 {[%clk 0:03:08.9]} 9...
Be6 {[%clk 0:02:34.8]} 10. Bxe6 {[%clk 0:03:09.8]} 10... Rxe6 {[%clk 0:02:35]}
11. O-O {[%clk 0:03:09.7]} 11... Nbd7 {[%clk 0:02:27]} 12. Qb3 {[%clk
0:03:09.3]} 12... a5 {[%clk 0:02:21.1]} 13. a3 {[%clk 0:03:04.5]} 13... Bxc3
{[%clk 0:02:17.3]} 14. bxc3 {[%clk 0:03:06.1]} 14... a4 {[%clk 0:02:16.7]} 15.
Qc2 {[%clk 0:03:02.2]} 15... b5 {[%clk 0:02:15.4]} 16. c4 {[%clk 0:02:56.7]}
16... bxc4 {[%clk 0:02:13.7]} 17. Qxc4 {[%clk 0:02:58]} 17... Nb6 {[%clk
0:02:14.5]} 18. Qd3 {[%clk 0:02:56.7]} 18... c5 {[%clk 0:02:11.8]} 19. Rab1
{[%clk 0:02:38]} 19... c4 {[%clk 0:02:05.3]} 20. Qf5 {[%clk 0:02:38.9]} 20... c3
{[%clk 0:01:58]} 21. Rfc1 {[%clk 0:02:24.2]} 21... Rc8 {[%clk 0:01:54.7]} 22.
Ne5 {[%clk 0:02:00]} 22... h6 {[%clk 0:01:43.9]} 23. h3 {[%clk 0:01:55.8]} 23...
Qe8 {[%clk 0:01:44.4]} 24. Nd3 {[%clk 0:01:33.5]} 24... Nc4 {[%clk 0:01:41.4]}
25. Bf4 {[%clk 0:01:25.5]} 25... Nd2 {[%clk 0:01:41.8]} 26. Bxd2 {[%clk
0:01:14.9]} 26... cxd2 {[%clk 0:01:40.5]} 27. Rd1 {[%clk 0:01:14.9]} 27... Ne4
{[%clk 0:01:31.4]} 28. Ne5 {[%clk 0:01:14.7]} 28... Nc3 {[%clk 0:01:28.2]} 29.
Rxd2 {[%clk 0:01:12.1]} 29... Nxb1 {[%clk 0:01:27.3]} 30. Qxb1 {[%clk 0:01:14]}
30... Qe7 {[%clk 0:01:22]} 31. Nf3 {[%clk 0:01:12]} 31... Qxa3 {[%clk
0:01:19.7]} 32. Kh2 {[%clk 0:01:10.4]} 32... Qd6+ {[%clk 0:01:16.1]} 33. g3
{[%clk 0:01:08.9]} 33... a3 {[%clk 0:01:17.5]} 34. d5 {[%clk 0:01:08.6]} 34...
Ree8 {[%clk 0:01:16.9]} 35. Qb3 {[%clk 0:01:03.2]} 35... Rb8 {[%clk 0:01:15.9]}
36. Qa2 {[%clk 0:01:00.2]} 36... Qf6 {[%clk 0:00:53.4]} 37. Qxa3 {[%clk
0:00:54.1]} 37... Ra8 {[%clk 0:00:52]} 38. Qd3 {[%clk 0:00:54.6]} 38... Red8
{[%clk 0:00:51.3]} 39. Kg2 {[%clk 0:00:51.8]} 39... Ra5 {[%clk 0:00:52.2]} 40.
d6 {[%clk 0:00:49.3]} 40... Ra7 {[%clk 0:00:49.8]} 41. Re2 {[%clk 0:00:41]}
41... Rad7 {[%clk 0:00:48.5]} 42. Qb5 {[%clk 0:00:31.8]} 42... Rxd6 {[%clk
0:00:48.3]} 43. Re8+ {[%clk 0:00:32.9]} 43... Rxe8 {[%clk 0:00:49.4]} 44. Qxe8+
{[%clk 0:00:34.8]} 44... Kh7 {[%clk 0:00:51]} 45. Qe4+ {[%clk 0:00:36.4]} 45...
g6 {[%clk 0:00:52.5]} 46. Qe3 {[%clk 0:00:37.9]} 46... Kg7 {[%clk 0:00:53.3]}
47. h4 {[%clk 0:00:39]} 47... Re6 {[%clk 0:00:51.4]} 48. Qd3 {[%clk 0:00:39.4]}
48... Rd6 {[%clk 0:00:52.1]} 49. Qe3 {[%clk 0:00:40.6]} 49... Qf5 {[%clk
0:00:51.9]} 50. Qc3+ {[%clk 0:00:40.6]} 50... Rf6 {[%clk 0:00:51.8]} 51. Qe3
{[%clk 0:00:42.1]} 51... Qd5 {[%clk 0:00:52.6]} 52. Qc3 {[%clk 0:00:37.7]} 52...
Qe4 {[%clk 0:00:53.4]} 53. Qa3 {[%clk 0:00:21.5]} 53... g5 {[%clk 0:00:53.2]}
54. hxg5 {[%clk 0:00:23.4]} 54... hxg5 {[%clk 0:00:53.3]} 55. Qe3 {[%clk
0:00:24.5]} 55... Qxe3 {[%clk 0:00:54.7]} 56. fxe3 {[%clk 0:00:26.4]} 56... Kg6
{[%clk 0:00:56.1]} 57. Kf2 {[%clk 0:00:23.2]} 57... Kh5 {[%clk 0:00:52.3]} 58.
Kg2 {[%clk 0:00:21.8]} 58... Ra6 {[%clk 0:00:52.9]} 59. Ne5 {[%clk 0:00:16]}
59... f5 {[%clk 0:00:43.2]} 60. Kf3 {[%clk 0:00:15.7]} 60... Ra4 {[%clk
0:00:44.6]} 61. Nc6 {[%clk 0:00:11.8]} 61... g4+ {[%clk 0:00:37.7]} 62. Ke2
{[%clk 0:00:11.8]} 62... Ra2+ {[%clk 0:00:38.9]} 63. Kf1 {[%clk 0:00:12.5]}
63... Kg5 {[%clk 0:00:40.3]} 64. Nd4 {[%clk 0:00:12.8]} 64... Kf6 {[%clk
0:00:41.8]} 65. Ne2 {[%clk 0:00:09.1]} 65... Ke5 {[%clk 0:00:42.6]} 66. Ke1
{[%clk 0:00:10.5]} 66... Rxe2+ {[%clk 0:00:38.8]} 67. Kxe2 {[%clk 0:00:11]}
67... Ke4 {[%clk 0:00:40.7]} 68. Kf2 {[%clk 0:00:12.6]} 68... Kd3 {[%clk
0:00:41.8]} 0-1

[Event "*** Titled Tuesday Blitz"]
[Site "Chess.com"]
[Date "2019.04.02"]
[Round "5"]
[White "Margency"]
[Black "UCantHandleDenker"]
[Result "1/2-1/2"]
[WhiteElo "2698"]
[BlackElo "2481"]
[TimeControl "180+2"]
[EndTime "15:06:40 PDT"]
[Termination "Game drawn by repetition"]

1. d4 {[%clk 0:03:01.9]} 1... Nf6 {[%clk 0:02:59.9]} 2. c4 {[%clk 0:03:02.6]}
2... g6 {[%clk 0:03:00.3]} 3. Nc3 {[%clk 0:03:03.1]} 3... Bg7 {[%clk 0:03:00.4]}
4. e4 {[%clk 0:03:04.1]} 4... d6 {[%clk 0:03:00.8]} 5. Be2 {[%clk 0:03:05.3]}
5... O-O {[%clk 0:03:01.2]} 6. Be3 {[%clk 0:03:06.4]} 6... e5 {[%clk 0:02:50.1]}
7. d5 {[%clk 0:03:07.3]} 7... a5 {[%clk 0:02:46.8]} 8. g4 {[%clk 0:03:07.8]}
8... Na6 {[%clk 0:02:46.3]} 9. g5 {[%clk 0:03:07.4]} 9... Nd7 {[%clk 0:02:46.3]}
10. h4 {[%clk 0:03:08.3]} 10... Ndc5 {[%clk 0:02:44.3]} 11. h5 {[%clk
0:03:06.1]} 11... c6 {[%clk 0:02:32.5]} 12. Nf3 {[%clk 0:02:32.2]} 12... a4
{[%clk 0:02:27.5]} 13. Rb1 {[%clk 0:02:26.3]} 13... Qa5 {[%clk 0:02:12.2]} 14.
Bd2 {[%clk 0:02:16.9]} 14... Qb6 {[%clk 0:02:08.9]} 15. Kf1 {[%clk 0:02:08.5]}
15... Bd7 {[%clk 0:02:03.8]} 16. Be3 {[%clk 0:02:08.1]} 16... Qa5 {[%clk
0:02:03.4]} 17. Qd2 {[%clk 0:01:52.5]} 17... Rfe8 {[%clk 0:01:59.4]} 18. Ne1
{[%clk 0:01:52.4]} 18... cxd5 {[%clk 0:01:55.7]} 19. cxd5 {[%clk 0:01:52.1]}
19... Nc7 {[%clk 0:01:46.7]} 20. Nd3 {[%clk 0:01:48.9]} 20... Nxd3 {[%clk
0:01:46.4]} 21. Bxd3 {[%clk 0:01:49.3]} 21... b5 {[%clk 0:01:46.3]} 22. hxg6
{[%clk 0:01:44.4]} 22... hxg6 {[%clk 0:01:44.1]} 23. Kg2 {[%clk 0:01:44.9]}
23... b4 {[%clk 0:01:42.4]} 24. Ne2 {[%clk 0:01:44.1]} 24... Bb5 {[%clk
0:01:42.9]} 25. Rbc1 {[%clk 0:01:44]} 25... Bxd3 {[%clk 0:01:37.6]} 26. Qxd3
{[%clk 0:01:45.2]} 26... Qb5 {[%clk 0:01:26.8]} 27. Qxb5 {[%clk 0:01:40.4]}
27... Nxb5 {[%clk 0:01:27.4]} 28. Rc4 {[%clk 0:01:42]} 28... b3 {[%clk
0:01:22.6]} 29. axb3 {[%clk 0:01:39]} 29... axb3 {[%clk 0:01:23.3]} 30. Rb4
{[%clk 0:01:40.5]} 30... Reb8 {[%clk 0:01:16.4]} 31. Rxb3 {[%clk 0:01:41]} 31...
Nd4 {[%clk 0:01:15.8]} 32. Rxb8+ {[%clk 0:01:21.5]} 32... Rxb8 {[%clk
0:01:15.8]} 33. Bxd4 {[%clk 0:01:22.6]} 33... exd4 {[%clk 0:01:16.3]} 34. Nf4
{[%clk 0:01:18.9]} 34... Rxb2 {[%clk 0:01:11.3]} 35. Rd1 {[%clk 0:01:18.3]}
35... Rb3 {[%clk 0:00:59.4]} 36. Nd3 {[%clk 0:01:18.9]} 36... Rc3 {[%clk
0:00:56.4]} 37. f4 {[%clk 0:01:19]} 37... f6 {[%clk 0:00:54.5]} 38. gxf6 {[%clk
0:01:19.6]} 38... Bxf6 {[%clk 0:00:56.4]} 39. e5 {[%clk 0:01:18.2]} 39... Bg7
{[%clk 0:00:46]} 40. exd6 {[%clk 0:01:10.1]} 40... Rc8 {[%clk 0:00:29.3]} 41.
Re1 {[%clk 0:01:02]} 41... Rd8 {[%clk 0:00:26.6]} 42. Re6 {[%clk 0:01:03]} 42...
Bf8 {[%clk 0:00:21.2]} 43. Rxg6+ {[%clk 0:01:02.1]} 43... Kh7 {[%clk 0:00:22.3]}
44. f5 {[%clk 0:00:55]} 44... Bxd6 {[%clk 0:00:22.9]} 45. Rg4 {[%clk 0:00:51.3]}
45... Rf8 {[%clk 0:00:18.3]} 46. Rg5 {[%clk 0:00:40.9]} 46... Be7 {[%clk
0:00:15.4]} 47. Rh5+ {[%clk 0:00:41.4]} 47... Kg7 {[%clk 0:00:16.5]} 48. Kf3
{[%clk 0:00:42.5]} 48... Rd8 {[%clk 0:00:15]} 49. Ke4 {[%clk 0:00:43.3]} 49...
Bf6 {[%clk 0:00:16.5]} 50. Rh3 {[%clk 0:00:42.6]} 50... Re8+ {[%clk 0:00:17.6]}
51. Kf4 {[%clk 0:00:44]} 51... Rd8 {[%clk 0:00:13.9]} 52. Rg3+ {[%clk
0:00:42.3]} 52... Kf8 {[%clk 0:00:12.9]} 53. Ke4 {[%clk 0:00:42.6]} 53... Re8+
{[%clk 0:00:13.5]} 54. Kf3 {[%clk 0:00:43.9]} 54... Rd8 {[%clk 0:00:14.9]} 55.
Rg6 {[%clk 0:00:45]} 55... Kf7 {[%clk 0:00:15.1]} 56. Ke4 {[%clk 0:00:45.6]}
56... Re8+ {[%clk 0:00:15.8]} 57. Kf4 {[%clk 0:00:46]} 57... Rd8 {[%clk
0:00:17.7]} 58. Ne5+ {[%clk 0:00:46.7]} 58... Bxe5+ {[%clk 0:00:16.7]} 59. Kxe5
{[%clk 0:00:47.9]} 59... d3 {[%clk 0:00:17.3]} 60. Rg3 {[%clk 0:00:49]} 60... d2
{[%clk 0:00:15.3]} 61. Rd3 {[%clk 0:00:49.9]} 61... Re8+ {[%clk 0:00:17.2]} 62.
Kf4 {[%clk 0:00:51.2]} 62... Re2 {[%clk 0:00:16.5]} 63. d6 {[%clk 0:00:51.1]}
63... Ke8 {[%clk 0:00:17.9]} 64. Kf3 {[%clk 0:00:50.3]} 64... Re5 {[%clk
0:00:17.9]} 65. Kf4 {[%clk 0:00:50]} 65... Re2 {[%clk 0:00:18.6]} 66. Kg5 {[%clk
0:00:51.2]} 66... Kd7 {[%clk 0:00:19.2]} 67. Kg6 {[%clk 0:00:52.1]} 67... Rg2+
{[%clk 0:00:19.8]} 68. Kf7 {[%clk 0:00:53.1]} 68... Rf2 {[%clk 0:00:20.8]} 69.
f6 {[%clk 0:00:54.2]} 69... Rg2 {[%clk 0:00:21.8]} 70. Kf8 {[%clk 0:00:55.4]}
70... Rf2 {[%clk 0:00:21.8]} 71. f7 {[%clk 0:00:55.9]} 71... Rg2 {[%clk
0:00:22.6]} 72. Rd5 {[%clk 0:00:54.7]} 72... Rf2 {[%clk 0:00:23.3]} 73. Kg7
{[%clk 0:00:54.9]} 73... Rg2+ {[%clk 0:00:24.2]} 74. Kf6 {[%clk 0:00:56]} 74...
Rf2+ {[%clk 0:00:25.2]} 75. Kg6 {[%clk 0:00:57.2]} 75... Rg2+ {[%clk 0:00:26.1]}
76. Kh7 {[%clk 0:00:40.7]} 76... Rf2 {[%clk 0:00:26.7]} 77. Rxd2 {[%clk
0:00:34.3]} 77... Rxf7+ {[%clk 0:00:25.7]} 78. Kg6 {[%clk 0:00:35.9]} 78... Rf1
{[%clk 0:00:27.1]} 79. Kg5 {[%clk 0:00:36.6]} 79... Rf8 {[%clk 0:00:28]} 80. Kg6
{[%clk 0:00:37.6]} 80... Rf1 {[%clk 0:00:29.1]} 81. Rd3 {[%clk 0:00:38.5]} 81...
Rf2 {[%clk 0:00:29.6]} 82. Rd1 {[%clk 0:00:39.3]} 82... Rf3 {[%clk 0:00:30.3]}
83. Kg5 {[%clk 0:00:40.6]} 83... Rf2 {[%clk 0:00:30.9]} 84. Kg6 {[%clk
0:00:41.8]} 84... Rf3 {[%clk 0:00:31.5]} 85. Kg5 {[%clk 0:00:43.3]} 85... Rf2
{[%clk 0:00:32.2]} 86. Kg6 {[%clk 0:00:44.9]} 86... Rf3 {[%clk 0:00:32.8]} 87.
Kg5 {[%clk 0:00:46.4]} 1/2-1/2